[Event "FIDE Grand Swiss 2023"]
[Site "Villa Marina, Douglas, Isle of Man, Isle Of Man"]
[Date "2023.11.02"]
[Round "8.27"]
[White "Matlakov, Maxim"]
[Black "L'ami, Erwin"]
[Result "1/2-1/2"]
[TimeControl "40/90 + 30 + 30s/move"]
[WhiteFideId "4168003"]
[BlackFideId "1007998"]
[WhiteElo "2674"]
[BlackElo "2627"]

1. d4 {[%clk 01:40:53]} {[%emt 00:00:06]} d5 {[%clk 01:40:43]} {[%emt
00:00:17]} 2. c4 {[%clk 01:41:06]} {[%emt 00:00:18]} e6 {[%clk 01:40:58]}
{[%emt 00:00:14]} 3. Nf3 {[%clk 01:41:07]} {[%emt 00:00:30]} Nf6 {[%clk
01:41:17]} {[%emt 00:00:11]} 4. g3 {[%clk 01:41:11]} {[%emt 00:00:26]} dxc4
{[%clk 01:40:46]} {[%emt 00:01:00]} 5. Bg2 {[%clk 01:41:20]} {[%emt 00:00:22]}
c5 {[%clk 01:41:02]} {[%emt 00:00:14]} 6. O-O {[%clk 01:40:21]} {[%emt
00:01:30]} Nc6 {[%clk 01:41:22]} {[%emt 00:00:09]} 7. Qa4 {[%clk 01:37:47]}
{[%emt 00:03:04]} Bd7 {[%clk 01:39:36]} {[%emt 00:02:15]} 8. Qxc4 {[%clk
01:37:47]} {[%emt 00:00:31]} cxd4 {[%clk 01:39:47]} {[%emt 00:00:19]} 9. Nxd4
{[%clk 01:37:34]} {[%emt 00:00:43]} Rc8 {[%clk 01:40:05]} {[%emt 00:00:12]} 10.
Nc3 {[%clk 01:36:34]} {[%emt 00:01:31]} Nxd4 {[%clk 01:40:23]} {[%emt
00:00:11]} 11. Qxd4 {[%clk 01:36:55]} {[%emt 00:00:10]} Bc5 {[%clk 01:40:43]}
{[%emt 00:00:10]} 12. Qh4 {[%clk 01:37:12]} {[%emt 00:00:12]} h6 {[%clk
01:39:57]} {[%emt 00:01:16]} 13. Bxb7 {[%clk 01:25:11]} {[%emt 00:12:31]} Rb8
{[%clk 01:39:55]} {[%emt 00:00:31]} 14. Ne4 {[%clk 01:25:06]} {[%emt 00:00:36]}
Be7 {[%clk 01:29:02]} {[%emt 00:11:22]} 15. Ba6 {[%clk 01:25:19]} {[%emt
00:00:19]} O-O {[%clk 01:00:27]} {[%emt 00:29:04]} 16. Nxf6+ {[%clk 01:21:48]}
{[%emt 00:04:02]} Bxf6 {[%clk 01:00:48]} {[%emt 00:00:08]} 17. Qe4 {[%clk
01:21:53]} {[%emt 00:00:26]} Bb5 {[%clk 00:52:30]} {[%emt 00:08:47]} 18. Bxb5
{[%clk 01:18:50]} {[%emt 00:03:34]} Rxb5 {[%clk 00:52:52]} {[%emt 00:00:08]} 19.
a4 {[%clk 01:10:27]} {[%emt 00:08:53]} Rb3 {[%clk 00:46:26]} {[%emt 00:06:55]}
20. Ra3 {[%clk 01:03:20]} {[%emt 00:07:38]} Rxa3 {[%clk 00:37:44]} {[%emt
00:09:12]} 21. bxa3 {[%clk 01:03:11]} {[%emt 00:00:39]} a5 {[%clk 00:30:56]}
{[%emt 00:07:18]} 22. Be3 {[%clk 00:50:24]} {[%emt 00:13:17]} Qd6 {[%clk
00:27:40]} {[%emt 00:03:45]} 23. Rb1 {[%clk 00:38:02]} {[%emt 00:12:53]} Qxa3
{[%clk 00:25:08]} {[%emt 00:03:02]} 24. Rb5 {[%clk 00:38:05]} {[%emt 00:00:28]}
Bc3 {[%clk 00:21:04]} {[%emt 00:04:33]} 25. Bc5 {[%clk 00:31:46]} {[%emt
00:06:49]} Qc1+ {[%clk 00:20:08]} {[%emt 00:01:26]} 26. Kg2 {[%clk 00:32:10]}
{[%emt 00:00:06]} Rc8 {[%clk 00:17:28]} {[%emt 00:03:09]} 27. Qb7 {[%clk
00:25:44]} {[%emt 00:06:57]} Rd8 {[%clk 00:16:09]} {[%emt 00:01:48]} 28. Bb6
{[%clk 00:24:58]} {[%emt 00:01:16]} Rd1 {[%clk 00:09:32]} {[%emt 00:07:07]} 29.
Rc5 {[%clk 00:24:27]} {[%emt 00:01:02]} Rg1+ {[%clk 00:05:45]} {[%emt
00:04:17]} 30. Kf3 {[%clk 00:24:33]} {[%emt 00:00:24]} Qb2 {[%clk 00:05:35]}
{[%emt 00:00:40]} 31. Qe4 {[%clk 00:10:14]} {[%emt 00:14:49]} g6 {[%clk
00:04:33]} {[%emt 00:01:31]} 32. Rb5 {[%clk 00:09:47]} {[%emt 00:00:57]} Qa3
{[%clk 00:02:05]} {[%emt 00:02:58]} 33. Be3 {[%clk 00:09:17]} {[%emt 00:01:01]}
e5 {[%clk 00:00:58]} {[%emt 00:01:37]} 34. Rb8+ {[%clk 00:08:37]} {[%emt
00:01:10]} Kh7 {[%clk 00:01:07]} {[%emt 00:00:22]} 35. Rb7 {[%clk 00:06:47]}
{[%emt 00:02:20]} Qa2 {[%clk 00:01:15]} {[%emt 00:00:21]} 36. Rc7 {[%clk
00:04:34]} {[%emt 00:02:43]} Bb2 {[%clk 00:01:13]} {[%emt 00:00:32]} 37. Qc4
{[%clk 00:00:49]} {[%emt 00:04:15]} Qxc4 {[%clk 00:01:34]} {[%emt 00:00:09]} 38.
Rxc4 {[%clk 00:01:18]} {[%emt 00:00:02]} g5 {[%clk 00:01:03]} {[%emt 00:01:01]}
39. h4 {[%clk 00:01:06]} {[%emt 00:00:42]} Kg6 {[%clk 00:01:03]} {[%emt
00:00:29]} 40. hxg5 {[%clk 00:00:46]} {[%emt 00:00:50]} hxg5 {[%clk 00:01:28]}
{[%emt 00:00:05]} 41. g4 {[%clk 00:44:32]} {[%emt 00:06:44]} f6 {[%clk
00:37:26]} {[%emt 00:14:32]} 42. Bb6 {[%clk 00:39:28]} {[%emt 00:05:34]} Kf7
{[%clk 00:26:26]} {[%emt 00:11:29]} 43. Bxa5 {[%clk 00:35:10]} {[%emt
00:04:50]} Ke6 {[%clk 00:25:54]} {[%emt 00:01:01]} 44. Bb6 {[%clk 00:22:35]}
{[%emt 00:13:05]} Kd5 {[%clk 00:22:44]} {[%emt 00:03:39]} 45. Rb4 {[%clk
00:12:25]} {[%emt 00:10:41]} Bc3 {[%clk 00:16:23]} {[%emt 00:06:51]} 46. Rb5+
{[%clk 00:05:25]} {[%emt 00:07:30]} Kd6 {[%clk 00:09:45]} {[%emt 00:07:08]} 47.
a5 {[%clk 00:05:02]} {[%emt 00:00:54]} Ra1 {[%clk 00:07:38]} {[%emt 00:02:36]}
48. Ke4 {[%clk 00:04:09]} {[%emt 00:01:23]} Ke6 {[%clk 00:05:01]} {[%emt
00:03:07]} 49. Rc5 {[%clk 00:02:54]} {[%emt 00:01:44]} Ra4+ {[%clk 00:04:42]}
{[%emt 00:00:50]} 50. Kd3 {[%clk 00:03:20]} {[%emt 00:00:04]} Bb4 {[%clk
00:04:33]} {[%emt 00:00:39]} 51. Rb5 {[%clk 00:00:52]} {[%emt 00:02:58]} Kd7
{[%clk 00:03:41]} {[%emt 00:01:21]} 52. e4 {[%clk 00:00:51]} {[%emt 00:00:32]}
Kc6 {[%clk 00:02:20]} {[%emt 00:01:51]} 53. Rd5 {[%clk 00:01:20]} {[%emt
00:00:02]} Ra2 {[%clk 00:02:05]} {[%emt 00:00:44]} 54. Kc4 {[%clk 00:01:17]}
{[%emt 00:00:33]} Be7 {[%clk 00:01:43]} {[%emt 00:00:52]} 55. Kb3 {[%clk
00:01:06]} {[%emt 00:00:40]} Ra3+ {[%clk 00:01:55]} {[%emt 00:00:20]} 56. Kc4
{[%clk 00:00:46]} {[%emt 00:00:47]} Ra4+ {[%clk 00:01:47]} {[%emt 00:00:41]} 57.
Kd3 {[%clk 00:01:14]} {[%emt 00:00:01]} Ra3+ {[%clk 00:02:02]} {[%emt
00:00:15]} 58. Ke2 {[%clk 00:01:28]} {[%emt 00:00:14]} Ra4 {[%clk 00:02:16]}
{[%emt 00:00:18]} 59. f3 {[%clk 00:01:26]} {[%emt 00:00:33]} Ra1 {[%clk
00:00:39]} {[%emt 00:02:06]} 60. Rd1 {[%clk 00:00:59]} {[%emt 00:00:58]} Ra2+
{[%clk 00:00:44]} {[%emt 00:00:25]} 61. Rd2 {[%clk 00:01:15]} {[%emt 00:00:14]}
Ra3 {[%clk 00:14:19]} {[%emt 00:01:54]} 62. Rc2+ {[%clk 00:12:37]} {[%emt
00:04:08]} Kb5 {[%clk 00:14:08]} {[%emt 00:00:41]} 63. Kf2 {[%clk 00:10:02]}
{[%emt 00:03:05]} Ra1 {[%clk 00:12:34]} {[%emt 00:02:04]} 64. Kg2 {[%clk
00:09:42]} {[%emt 00:00:49]} Ra3 {[%clk 00:12:25]} {[%emt 00:00:40]} 65. Kg3
{[%clk 00:06:55]} {[%emt 00:03:17]} Ra1 {[%clk 00:12:22]} {[%emt 00:00:34]} 66.
Rd2 {[%clk 00:05:33]} {[%emt 00:01:51]} Kc6 {[%clk 00:09:34]} {[%emt 00:03:18]}
67. Bd8 {[%clk 00:03:48]} {[%emt 00:02:16]} Bxd8 {[%clk 00:08:03]} {[%emt
00:02:01]} 68. Rxd8 {[%clk 00:04:09]} {[%emt 00:00:08]} Kc5 {[%clk 00:08:02]}
{[%emt 00:00:31]} 69. Rf8 {[%clk 00:04:03]} {[%emt 00:00:36]} Kd4 {[%clk
00:08:04]} {[%emt 00:00:28]} 70. Rxf6 {[%clk 00:01:59]} {[%emt 00:02:35]} Ke3
{[%clk 00:08:28]} {[%emt 00:00:05]} 71. Rb6 {[%clk 00:01:28]} {[%emt 00:01:02]}
Rg1 {[%clk 00:06:31]} {[%emt 00:02:26]} 72. Kh2 {[%clk 00:01:55]} {[%emt
00:00:04]} Ra1 {[%clk 00:06:53]} {[%emt 00:00:07]} 73. Kg2 {[%clk 00:01:11]}
{[%emt 00:01:14]} Rxa5 {[%clk 00:06:58]} {[%emt 00:00:26]} 74. Kg3 {[%clk
00:01:00]} {[%emt 00:00:41]} Ra1 {[%clk 00:04:12]} {[%emt 00:03:16]} 75. Rb3+
{[%clk 00:01:01]} {[%emt 00:00:29]} Ke2 {[%clk 00:03:47]} {[%emt 00:00:55]} 76.
Rb5 {[%clk 00:01:11]} {[%emt 00:00:20]} Ke3 {[%clk 00:03:22]} {[%emt 00:00:54]}
77. Rxe5 {[%clk 00:01:09]} {[%emt 00:00:33]} Rg1 {[%clk 00:03:47]} {[%emt
00:00:04]} 78. Kh2 {[%clk 00:01:34]} {[%emt 00:00:05]} Kf2 {[%clk 00:04:04]}
{[%emt 00:00:13]} 79. Rxg5 {[%clk 00:01:45]} {[%emt 00:00:20]} Rg2 {[%clk
00:04:29]} {[%emt 00:00:04]} 80. Kh3 {[%clk 00:02:04]} {[%emt 00:00:10]} Rg1
{[%clk 00:04:54]} {[%emt 00:00:06]} 1/2-1/2

[Event "FIDE Grand Swiss 2023"]
[Site "Villa Marina, Douglas, Isle of Man, Isle Of Man"]
[Date "2023.11.02"]
[Round "8.28"]
[White "Aryan, Chopra"]
[Black "Bluebaum, Matthias"]
[Result "1/2-1/2"]
[TimeControl "40/90 + 30 + 30s/move"]
[WhiteFideId "5084423"]
[BlackFideId "24651516"]
[WhiteElo "2634"]
[BlackElo "2668"]

1. e4 {[%clk 01:40:56]} {[%emt 00:00:03]} e5 {[%clk 01:40:53]} {[%emt
00:00:07]} 2. Ne2 {[%clk 01:41:21]} {[%emt 00:00:06]} Nc6 {[%clk 01:40:09]}
{[%emt 00:01:13]} 3. d4 {[%clk 01:41:42]} {[%emt 00:00:09]} exd4 {[%clk
01:40:33]} {[%emt 00:00:06]} 4. Nxd4 {[%clk 01:42:08]} {[%emt 00:00:04]} Nf6
{[%clk 01:41:00]} {[%emt 00:00:03]} 5. Nxc6 {[%clk 01:42:29]} {[%emt 00:00:10]}
bxc6 {[%clk 01:41:26]} {[%emt 00:00:04]} 6. e5 {[%clk 01:42:52]} {[%emt
00:00:06]} Qe7 {[%clk 01:41:52]} {[%emt 00:00:04]} 7. Qe2 {[%clk 01:43:13]}
{[%emt 00:00:09]} Nd5 {[%clk 01:42:13]} {[%emt 00:00:10]} 8. h4 {[%clk
01:42:59]} {[%emt 00:00:44]} Qe6 {[%clk 01:41:06]} {[%emt 00:01:37]} 9. Nd2
{[%clk 01:42:49]} {[%emt 00:00:40]} a5 {[%clk 01:39:14]} {[%emt 00:02:22]} 10.
g3 {[%clk 01:38:58]} {[%emt 00:04:21]} Nb4 {[%clk 01:29:41]} {[%emt 00:10:02]}
11. Nf3 {[%clk 01:38:27]} {[%emt 00:01:00]} Ba6 {[%clk 01:29:52]} {[%emt
00:00:20]} 12. c4 {[%clk 01:38:15]} {[%emt 00:00:43]} Qg6 {[%clk 01:29:50]}
{[%emt 00:00:31]} 13. Kd1 {[%clk 01:37:08]} {[%emt 00:01:38]} c5 {[%clk
01:29:05]} {[%emt 00:01:14]} 14. a3 {[%clk 01:36:22]} {[%emt 00:01:16]} Nc6
{[%clk 01:26:54]} {[%emt 00:02:42]} 15. h5 {[%clk 01:36:27]} {[%emt 00:00:24]}
Qe6 {[%clk 01:26:05]} {[%emt 00:01:19]} 16. Bd2 {[%clk 01:34:46]} {[%emt
00:02:11]} Be7 {[%clk 01:15:25]} {[%emt 00:11:11]} 17. Bc3 {[%clk 01:30:04]}
{[%emt 00:05:11]} O-O {[%clk 01:09:38]} {[%emt 00:06:17]} 18. Qe4 {[%clk
01:24:23]} {[%emt 00:06:10]} Rad8 {[%clk 00:54:14]} {[%emt 00:15:55]} 19. Bd3
{[%clk 01:10:31]} {[%emt 00:14:22]} f5 {[%clk 00:51:22]} {[%emt 00:03:23]} 20.
exf6 {[%clk 00:51:13]} {[%emt 00:19:48]} Qxe4 {[%clk 00:51:29]} {[%emt
00:00:23]} 21. Bxe4 {[%clk 00:51:39]} {[%emt 00:00:04]} Bxf6 {[%clk 00:51:54]}
{[%emt 00:00:05]} 22. Bd5+ {[%clk 00:51:31]} {[%emt 00:00:38]} Kh8 {[%clk
00:52:19]} {[%emt 00:00:05]} 23. Nh4 {[%clk 00:50:13]} {[%emt 00:01:48]} Ne7
{[%clk 00:43:16]} {[%emt 00:09:33]} 24. Ng6+ {[%clk 00:49:46]} {[%emt
00:00:57]} Nxg6 {[%clk 00:43:39]} {[%emt 00:00:07]} 25. hxg6 {[%clk 00:50:11]}
{[%emt 00:00:04]} h6 {[%clk 00:44:07]} {[%emt 00:00:02]} 26. Bf7 {[%clk
00:37:48]} {[%emt 00:12:54]} Bxc3 {[%clk 00:39:18]} {[%emt 00:05:18]} 27. bxc3
{[%clk 00:38:16]} {[%emt 00:00:02]} d5 {[%clk 00:38:07]} {[%emt 00:01:42]} 28.
Kc2 {[%clk 00:34:04]} {[%emt 00:04:41]} Bxc4 {[%clk 00:34:15]} {[%emt
00:04:22]} 29. Rae1 {[%clk 00:33:20]} {[%emt 00:01:15]} Rd7 {[%clk 00:19:49]}
{[%emt 00:14:56]} 30. Re8 {[%clk 00:17:35]} {[%emt 00:16:15]} Rxe8 {[%clk
00:18:10]} {[%emt 00:02:09]} 31. Bxe8 {[%clk 00:18:03]} {[%emt 00:00:01]} Re7
{[%clk 00:06:47]} {[%emt 00:11:53]} 32. Bf7 {[%clk 00:18:28]} {[%emt 00:00:05]}
Re2+ {[%clk 00:06:24]} {[%emt 00:00:53]} 33. Kc1 {[%clk 00:11:25]} {[%emt
00:07:34]} Bd3 {[%clk 00:05:44]} {[%emt 00:01:10]} 34. Rh5 {[%clk 00:10:56]}
{[%emt 00:00:58]} c6 {[%clk 00:04:47]} {[%emt 00:01:27]} 35. f4 {[%clk
00:11:23]} {[%emt 00:00:03]} Rc2+ {[%clk 00:03:44]} {[%emt 00:01:33]} 36. Kd1
{[%clk 00:11:52]} {[%emt 00:00:01]} Be2+ {[%clk 00:04:04]} {[%emt 00:00:10]} 37.
Kxc2 {[%clk 00:12:20]} {[%emt 00:00:02]} Bxh5 {[%clk 00:04:30]} {[%emt
00:00:04]} 38. f5 {[%clk 00:02:01]} {[%emt 00:10:49]} Bf3 {[%clk 00:04:42]}
{[%emt 00:00:18]} 39. Be6 {[%clk 00:02:19]} {[%emt 00:00:12]} Be4+ {[%clk
00:05:08]} {[%emt 00:00:04]} 40. Kd2 {[%clk 00:02:44]} {[%emt 00:00:06]} d4
{[%clk 00:04:19]} {[%emt 00:01:19]} 41. g4 {[%clk 00:34:06]} {[%emt 00:19:07]}
Bb1 {[%clk 00:52:22]} {[%emt 00:02:27]} 42. c4 {[%clk 00:32:02]} {[%emt
00:02:34]} Be4 {[%clk 00:39:50]} {[%emt 00:13:02]} 43. Ke2 {[%clk 00:32:26]}
{[%emt 00:00:06]} Bg2 {[%clk 00:39:56]} {[%emt 00:00:25]} 44. Kf2 {[%clk
00:26:22]} {[%emt 00:06:33]} d3 {[%clk 00:24:17]} {[%emt 00:16:09]} 45. g5
{[%clk 00:11:02]} {[%emt 00:15:50]} d2 {[%clk 00:02:55]} {[%emt 00:21:53]} 46.
Ke2 {[%clk 00:11:27]} {[%emt 00:00:05]} hxg5 {[%clk 00:03:08]} {[%emt
00:00:17]} 47. Kxd2 {[%clk 00:11:50]} {[%emt 00:00:06]} a4 {[%clk 00:03:31]}
{[%emt 00:00:07]} 48. Ke3 {[%clk 00:11:45]} {[%emt 00:00:34]} Bh1 {[%clk
00:02:26]} {[%emt 00:01:35]} 49. Kf2 {[%clk 00:10:53]} {[%emt 00:01:23]} g4
{[%clk 00:01:22]} {[%emt 00:01:34]} 50. Kg3 {[%clk 00:11:08]} {[%emt 00:00:15]}
Bf3 {[%clk 00:01:45]} {[%emt 00:00:07]} 51. Kf4 {[%clk 00:11:07]} {[%emt
00:00:31]} Be2 {[%clk 00:01:27]} {[%emt 00:00:48]} 52. Kg3 {[%clk 00:02:16]}
{[%emt 00:09:21]} Bf3 {[%clk 00:01:40]} {[%emt 00:00:17]} 53. Kf4 {[%clk
00:01:52]} {[%emt 00:00:54]} Be2 {[%clk 00:02:09]} {[%emt 00:00:01]} 54. Ke5
{[%clk 00:01:27]} {[%emt 00:00:55]} Bd3 {[%clk 00:02:31]} {[%emt 00:00:07]} 55.
f6 {[%clk 00:01:44]} {[%emt 00:00:13]} Bxg6 {[%clk 00:02:58]} {[%emt 00:00:03]}
56. Bxg4 {[%clk 00:02:09]} {[%emt 00:00:05]} gxf6+ {[%clk 00:03:13]} {[%emt
00:00:15]} 57. Kxf6 {[%clk 00:02:22]} {[%emt 00:00:18]} Bd3 {[%clk 00:03:19]}
{[%emt 00:00:24]} 58. Be6 {[%clk 00:02:25]} {[%emt 00:00:26]} Bf1 {[%clk
00:03:35]} {[%emt 00:00:14]} 59. Ke7 {[%clk 00:01:42]} {[%emt 00:01:13]} Kg7
{[%clk 00:04:00]} {[%emt 00:00:06]} 60. Kd6 {[%clk 00:01:57]} {[%emt 00:00:15]}
Kf6 {[%clk 00:04:26]} {[%emt 00:00:04]} 61. Bg8 {[%clk 00:02:18]} {[%emt
00:00:08]} Kg7 {[%clk 00:04:48]} {[%emt 00:00:09]} 62. Be6 {[%clk 00:02:43]}
{[%emt 00:00:04]} Kf6 {[%clk 00:05:15]} {[%emt 00:00:03]} 63. Bd7 {[%clk
00:02:47]} {[%emt 00:00:26]} Bxc4 {[%clk 00:05:38]} {[%emt 00:00:08]} 64. Bxc6
{[%clk 00:03:10]} {[%emt 00:00:06]} Bb3 {[%clk 00:06:03]} {[%emt 00:00:04]} 65.
Kxc5 {[%clk 00:03:36]} {[%emt 00:00:05]} Ke7 {[%clk 00:06:30]} {[%emt
00:00:03]} 66. Kb4 {[%clk 00:04:00]} {[%emt 00:00:06]} Kd6 {[%clk 00:06:56]}
{[%emt 00:00:04]} 67. Bxa4 {[%clk 00:04:27]} {[%emt 00:00:03]} Bxa4 {[%clk
00:07:19]} {[%emt 00:00:07]} 68. Kxa4 {[%clk 00:04:54]} {[%emt 00:00:04]}
1/2-1/2

[Event "FIDE Grand Swiss 2023"]
[Site "Villa Marina, Douglas, Isle of Man, Isle Of Man"]
[Date "2023.11.02"]
[Round "8.29"]
[White "Volokitin, Andrei"]
[Black "Durarbayli, Vasif"]
[Result "1/2-1/2"]
[TimeControl "40/90 + 30 + 30s/move"]
[WhiteFideId "14107090"]
[BlackFideId "13402935"]
[WhiteElo "2664"]
[BlackElo "2625"]

1. e4 {[%clk 01:40:57]} {[%emt 00:00:02]} e5 {[%clk 01:40:48]} {[%emt
00:00:13]} 2. Nf3 {[%clk 01:41:17]} {[%emt 00:00:10]} Nc6 {[%clk 01:41:08]}
{[%emt 00:00:10]} 3. Bb5 {[%clk 01:41:41]} {[%emt 00:00:06]} a6 {[%clk
01:41:26]} {[%emt 00:00:13]} 4. Ba4 {[%clk 01:42:05]} {[%emt 00:00:06]} Nf6
{[%clk 01:41:49]} {[%emt 00:00:06]} 5. O-O {[%clk 01:42:28]} {[%emt 00:00:07]}
Be7 {[%clk 01:42:14]} {[%emt 00:00:06]} 6. Nc3 {[%clk 01:42:49]} {[%emt
00:00:09]} d6 {[%clk 01:38:20]} {[%emt 00:04:24]} 7. Bxc6+ {[%clk 01:41:34]}
{[%emt 00:01:45]} bxc6 {[%clk 01:38:42]} {[%emt 00:00:08]} 8. d4 {[%clk
01:42:01]} {[%emt 00:00:03]} exd4 {[%clk 01:38:56]} {[%emt 00:00:16]} 9. Nxd4
{[%clk 01:42:24]} {[%emt 00:00:06]} Bd7 {[%clk 01:38:41]} {[%emt 00:00:45]} 10.
Qf3 {[%clk 01:33:19]} {[%emt 00:09:35]} O-O {[%clk 01:38:10]} {[%emt 00:01:02]}
11. h3 {[%clk 01:21:55]} {[%emt 00:11:53]} Re8 {[%clk 01:30:28]} {[%emt
00:08:13]} 12. Re1 {[%clk 00:43:27]} {[%emt 00:38:57]} Qb8 {[%clk 01:08:51]}
{[%emt 00:22:07]} 13. e5 {[%clk 00:38:39]} {[%emt 00:05:18]} dxe5 {[%clk
01:08:17]} {[%emt 00:01:05]} 14. Nxc6 {[%clk 00:37:33]} {[%emt 00:01:36]} Bxc6
{[%clk 01:07:28]} {[%emt 00:01:19]} 15. Qxc6 {[%clk 00:38:01]} {[%emt
00:00:02]} Bb4 {[%clk 01:07:46]} {[%emt 00:00:12]} 16. Bg5 {[%clk 00:33:24]}
{[%emt 00:05:07]} Qb6 {[%clk 00:59:02]} {[%emt 00:09:14]} 17. Qc4 {[%clk
00:24:59]} {[%emt 00:08:55]} Qd4 {[%clk 00:58:33]} {[%emt 00:00:58]} 18. Qxd4
{[%clk 00:21:47]} {[%emt 00:03:42]} exd4 {[%clk 00:58:59]} {[%emt 00:00:04]} 19.
Rxe8+ {[%clk 00:22:02]} {[%emt 00:00:16]} Rxe8 {[%clk 00:59:11]} {[%emt
00:00:18]} 20. Bxf6 {[%clk 00:22:15]} {[%emt 00:00:16]} dxc3 {[%clk 00:59:25]}
{[%emt 00:00:16]} 21. Bxc3 {[%clk 00:15:38]} {[%emt 00:07:08]} Bxc3 {[%clk
00:59:32]} {[%emt 00:00:23]} 22. bxc3 {[%clk 00:16:07]} {[%emt 00:00:01]} Re2
{[%clk 00:59:04]} {[%emt 00:00:57]} 23. Rc1 {[%clk 00:14:34]} {[%emt 00:02:02]}
Kf8 {[%clk 00:59:23]} {[%emt 00:00:12]} 24. Kf1 {[%clk 00:14:58]} {[%emt
00:00:06]} Re4 {[%clk 00:56:50]} {[%emt 00:03:03]} 25. Rb1 {[%clk 00:13:25]}
{[%emt 00:02:04]} Ra4 {[%clk 00:57:15]} {[%emt 00:00:05]} 26. Rb7 {[%clk
00:08:58]} {[%emt 00:04:55]} Rxa2 {[%clk 00:57:37]} {[%emt 00:00:10]} 27. Rxc7
{[%clk 00:09:25]} {[%emt 00:00:03]} Rxc2 {[%clk 00:58:03]} {[%emt 00:00:04]} 28.
Ra7 {[%clk 00:09:52]} {[%emt 00:00:03]} Rxc3 {[%clk 00:58:26]} {[%emt
00:00:08]} 29. Rxa6 {[%clk 00:10:18]} {[%emt 00:00:03]} Rc1+ {[%clk 00:58:50]}
{[%emt 00:00:06]} 30. Ke2 {[%clk 00:10:45]} {[%emt 00:00:03]} Rc2+ {[%clk
00:59:15]} {[%emt 00:00:05]} 1/2-1/2